[Event "Liberia Championship 2023"]
[Site "Monrovia"]
[Date "2024.01.16"]
[Round "1.9"]
[White "Prince Jegbadai"]
[Black "David Leroy Debblay"]
[Result "0-1"]
[ECO "C42"]
[WhiteElo "1627"]
[BlackElo "1791"]
[Annotator "NA COMBH"]
[PlyCount "96"]
[EventDate "2024.01.16"]
[EventType "swiss"]
[EventCountry "LBR"]
[SourceTitle "playchess.com"]
[Source "ChessBase"]
[SourceQuality "1"]
[TimeControl "40/5400+30:1800+30"]

1. e4 {[%emt 1:31:00]} e5 {[%emt 1:31:00]} 2. Nf3 {[%emt 0:00:00]} Nf6 {[%emt 0:00:00]} 3. Nc3 {[%emt 0:00:00]} Bb4 {[%emt 0:00:00]} 4. d3 {[%emt 0:00:00]} d6 {[%emt 0:00:00]} 5. Bd2 {[%emt 0:00:00]} Bg4 {[%emt 0:00:00]} 6. h3 {[%emt 0:00:00]} Bh5 {[%emt 0:00:00]} 7. Be2 {[%emt 0:00:00]} Nc6 {[%emt 0:00:00]} 8. a3 {[%emt 0:00:00]} Ba5 {[%emt 0:00:00]} 9. b4 {[%emt 0:00:00]} Bb6 {[%emt 0:00:00]} 10. Bg5 {[%emt 0:00:00]} Bxf3 {[%emt 0:00:00]} 11. Bxf3 {[%emt 0:00:00]} Bd4 {[%emt 0:00:00]} 12. Qd2 {[%emt 0:05:30]} h6 {[%emt 0:05:30]} 13. Bh4 {[%emt 0:00:00]} g5 {[%emt 0:00:00]} 14. Bg3 {[%emt 0:00:00]} a6 {[%emt 0:00:00]} 15. Rb1 {[%emt 0:00:00]} Bxc3 {[%emt 0:00:00]} 16. Qxc3 {[%emt 0:00:00]} Nd4 {[%emt 0:00:00]} 17. Bd1 {[%emt 0:00:00]} Qe7 {[%emt 0:00:00]} 18. Qd2 {[%emt 0:00:00]} c6 {[%emt 0:00:00]} 19. c3 {[%emt 0:00:00]} Ne6 {[%emt 0:00:00]} 20. Bb3 {[%emt 0:00:00]} Nh5 {[%emt 0:00:00]} 21. Bxe6 {[%emt 0:00:00]} Qxe6 {[%emt 0:00:00]} 22. c4 {[%emt 0:00:00]} f5 {[%emt 0:00:00]} 23. exf5 {[%emt 0:00:00]} Qxf5 {[%emt 0:00:00]} 24. O-O {[%emt 0:00:00]} Nf4 {[%emt 0:00:00]} 25. Bxf4 {[%emt 0:06:30]} gxf4 {[%emt 0:06:30]} 26. f3 {[%emt 0:00:00]} Ke7 {[%emt 0:00:00]} 27. d4 {[%emt 0:00:00]} Rad8 {[%emt 0:00:00]} 28. Rbe1 {[%emt 0:00:00]} Kf6 {[%emt 0:00:00]} 29. Qb2 {[%emt 0:00:00]} Rhe8 {[%emt 0:00:00]} 30. Re4 {[%emt 0:00:00]} Re7 {[%emt 0:00:00]} 31. Rfe1 {[%emt 0:00:00]} Rde8 {[%emt 0:00:00]} 32. c5 {[%emt 0:00:00]} d5 {[%emt 0:00:00]} 33. dxe5+ {[%emt 0:00:00]} Rxe5 {[%emt 0:04:00]} 34. Rxe5 Rxe5 {[%emt 0:00:30]} 35. Kf2 {[%emt 0:00:00]} Ke6 {[%emt 0:00:00]} 36. Rxe5+ {[%emt 0:00:00]} Qxe5 {[%emt 0:00:00]} 37. Qe2 {[%emt 0:00:00]} h5 {[%emt 0:00:00]} 38. a4 {[%emt 0:00:00]} Kf5 {[%emt 0:00:00]} 39. Qd3+ {[%emt 0:00:00]} Kg5 {[%emt 0:00:00]} 40. b5 {[%emt 0:00:00]} axb5 {[%emt 0:00:00]} 41. axb5 {[%emt 0:00:00]} Qb2+ {[%emt 0:00:00]} 42. Qe2 {[%emt 0:00:00]} Qxe2+ {[%emt 0:00:00]} 43. Kxe2 {[%emt 0:39:00]} cxb5 {[%emt 0:34:30]} 44. Kd3 {[%emt 0:00:00]} b4 {[%emt 0:00:00]} 45. Kc2 {[%emt 0:00:00]} d4 {[%emt 0:00:00]} 46. Kb3 {[%emt 0:00:00]} d3 {[%emt 0:00:00]} 47. Kb2 {[%emt 0:00:00]} Kh4 {[%emt 0:00:00]} 48. Kc1 {[%emt 0:00:00]} b3 {[%emt 0:02:30]} 0-1

[Event "Liberia Championship 2023"]
[Site "Monrovia"]
[Date "2024.01.16"]
[Round "1.10"]
[White "Kennedy Zinnah Kengo"]
[Black "Alfred J. Kollie"]
[Result "0-1"]
[ECO "C55"]
[WhiteElo "1789"]
[BlackElo "1612"]
[Annotator "NA COMBH"]
[PlyCount "78"]
[EventDate "2024.01.16"]
[EventType "swiss"]
[EventCountry "LBR"]
[SourceTitle "playchess.com"]
[Source "ChessBase"]
[SourceQuality "1"]
[TimeControl "40/5400+30:1800+30"]

1. Nf3 {[%emt 0:00:06]} Nc6 {[%emt 0:42:21]} 2. e4 {[%emt 0:01:18]} e5 {[%emt 0:00:19]} 3. Bc4 {[%emt 0:00:20]} Be7 {[%emt 0:00:17]} 4. O-O {[%emt 0:01:31]} Nf6 {[%emt 0:00:05]} 5. c3 {[%emt 0:01:35]} O-O {[%emt 0:00:15]} 6. d4 {[%emt 0:00:20]} d6 {[%emt 0:00:18]} 7. dxe5 {[%emt 0:00:37]} dxe5 {[%emt 0:00:36]} 8. Qe2 {[%emt 0:00:39]} Bg4 {[%emt 0:00:16]} 9. Bg5 {[%emt 0:00:57]} Nh5 {[%emt 0:00:25]} 10. Rd1 {[%emt 0:00:38]} Qe8 {[%emt 0:00:11]} 11. Be3 {[%emt 0:00:41]} Nf4 {[%emt 0:00:19]} 12. Bxf4 {[%emt 0:00:20]} exf4 {[%emt 0:00:22]} 13. Nbd2 {[%emt 0:00:27]} Ne5 {[%emt 0:00:19]} 14. Bb3 {[%emt 0:00:18]} Rd8 {[%emt 0:00:20]} 15. Nc4 {[%emt 0:01:21]} Nxf3+ {[%emt 0:00:36]} 16. gxf3 {[%emt 0:00:14]} Bh3 {[%emt 0:00:51]} 17. Kh1 {[%emt 0:00:14]} Rxd1+ {[%emt 0:00:57]} 18. Rxd1 {[%emt 0:00:12]} Qb5 {[%emt 0:01:32]} 19. Rd5 {[%emt 0:02:35]} Qa6 {[%emt 0:00:19]} 20. Rh5 {[%emt 0:02:41]} Be6 {[%emt 0:00:26]} 21. Kg2 {[%emt 0:02:14]} Bxc4 {[%emt 0:01:07]} 22. Qxc4 {[%emt 0:02:22]} Qg6+ {[%emt 0:00:28]} 23. Kf1 {[%emt 0:00:18]} Qxh5 {[%emt 0:00:15]} 24. Qxc7 {[%emt 0:00:18]} Qh4 {[%emt 0:01:00]} 25. Bd5 {[%emt 0:00:37]} Bd8 {[%emt 0:00:29]} 26. Qc4 {[%emt 0:00:12]} Bb6 {[%emt 0:00:32]} 27. Qe2 {[%emt 0:00:32]} Qxh2 {[%emt 0:00:08]} 28. Ke1 {[%emt 0:00:20]} Qg1+ {[%emt 0:00:22]} 29. Qf1 {[%emt 0:00:14]} Qh2 {[%emt 0:01:34]} 30. b4 {[%emt 0:00:18]} a6 {[%emt 0:00:31]} 31. Bxb7 {[%emt 0:00:20]} a5 {[%emt 0:00:25]} 32. a3 {[%emt 0:00:27]} Rd8 {[%emt 0:00:38]} 33. Bd5 {[%emt 0:00:06]} axb4 {[%emt 0:00:24]} 34. axb4 {[%emt 0:00:13]} Rd7 {[%emt 0:00:50]} 35. Qb5 {[%emt 0:00:29]} Qxf2+ {[%emt 0:00:20]} 36. Kd1 {[%emt 0:00:15]} Rd8 {[%emt 0:00:26]} 37. Qd3 {[%emt 0:01:06]} h5 {[%emt 0:00:59]} 38. Bxf7+ {[%emt 0:00:34]} Kxf7 {[%emt 0:00:28]} 39. Qxd8 {[%emt 0:00:43]} Bxd8 {[%emt 0:00:11]} 0-1

[Event "Liberia Championship 2023"]
[Site "Monrovia"]
[Date "2024.01.16"]
[Round "2.1"]
[White "Barcon, Harmon"]
[Black "Daniel Kolliemelen"]
[Result "1-0"]
[ECO "C15"]
[WhiteElo "1902"]
[BlackElo "1809"]
[Annotator "NA RC"]
[PlyCount "107"]
[EventDate "2024.01.16"]
[EventType "swiss"]
[EventCountry "LBR"]
[SourceTitle "playchess.com"]
[Source "ChessBase"]
[SourceQuality "1"]
[TimeControl "40/5400+30:1800+30"]

1. e4 {[%emt 0:00:03]} e6 {[%emt 0:01:21]} 2. d4 {[%emt 0:00:08]} d5 {[%emt 0:01:21]} 3. Nc3 {[%emt 0:00:07]} Bb4 {[%emt 0:02:37]} 4. Bd3 {[%emt 0:00:45]} dxe4 {[%emt 0:03:24]} 5. Bxe4 {[%emt 0:00:14]} Nf6 {[%emt 0:01:53]} 6. Bd3 {[%emt 0:00:13]} c6 {[%emt 0:00:59]} 7. Nge2 {[%emt 0:00:03]} Nbd7 {[%emt 0:02:48]} 8. O-O {[%emt 0:00:06]} Bd6 {[%emt 0:02:51]} 9. Ng3 {[%emt 0:00:26]} Qc7 {[%emt 0:03:30]} 10. Re1 {[%emt 0:05:50]} a6 {[%emt 0:04:14]} 11. Qf3 {[%emt 0:00:16]} O-O {[%emt 0:01:22]} 12. Nce2 {[%emt 0:01:03]} b6 {[%emt 0:02:25]} 13. h3 {[%emt 0:03:43]} Bb7 {[%emt 0:00:20]} 14. Ne4 {[%emt 0:00:16]} c5 {[%emt 0:02:06]} 15. Bg5 {[%emt 0:00:53]} Bxe4 {[%emt 0:04:28]} 16. Bxe4 {[%emt 0:00:38]} Nxe4 {[%emt 0:00:32]} 17. Qxe4 {[%emt 0:00:03]} Rfe8 {[%emt 0:02:32]} 18. c3 {[%emt 0:00:49]} Nf8 {[%emt 0:02:23]} 19. Rad1 {[%emt 0:00:22]} Ng6 {[%emt 0:02:45]} 20. dxc5 {[%emt 0:00:06]} bxc5 {[%emt 0:07:27]} 21. Rd2 {[%emt 0:04:23]} Be7 {[%emt 0:08:42]} 22. Be3 {[%emt 0:01:36]} Rad8 {[%emt 0:09:12]} 23. Qa4 {[%emt 0:00:56]} Qc8 {[%emt 0:01:17]} 24. Red1 {[%emt 0:02:36]} Rxd2 {[%emt 0:03:33]} 25. Rxd2 {[%emt 0:00:23]} Nf8 {[%emt 0:01:59]} 26. Ng3 {[%emt 0:00:29]} f5 {[%emt 0:05:28]} 27. Qc4 {[%emt 0:01:10]} Kh8 {[%emt 0:01:01]} 28. Bf4 {[%emt 0:01:45]} Ng6 {[%emt 0:06:43]} 29. Re2 {[%emt 0:01:14]} Bf8 {[%emt 0:04:33]} 30. Bd2 {[%emt 0:02:12]} Bd6 {[%emt 0:02:53]} 31. Qa4 {[%emt 0:01:43]} Bxg3 {[%emt 0:09:21]} 32. fxg3 {[%emt 1:11:59]} e5 {[%emt 0:00:00]} 33. Qc4 {[%emt 0:00:00]} e4 {[%emt 0:00:00]} 34. Be3 {[%emt 0:00:00]} Qc7 {[%emt 0:00:00]} 35. Bf2 {[%emt 0:00:00]} Qd6 {[%emt 0:00:00]} 36. Qxc5 {[%emt 0:02:00]} Qe6 {[%emt 0:00:04]} 37. Bd4 {[%emt 0:00:00]} f4 {[%emt 0:00:33]} 38. gxf4 {[%emt 0:00:00]} Nxf4 {[%emt 0:01:14]} 39. Rf2 {[%emt 0:00:00]} Ng6 {[%emt 0:00:29]} 40. a4 {[%emt 0:00:00]} h6 {[%emt 0:00:35]} 41. Qb6 {[%emt 0:00:00]} Qxb6 {[%emt 0:01:59]} 42. Bxb6 {[%emt 0:00:00]} Ne5 {[%emt 0:01:24]} 43. Bd4 {[%emt 0:00:00]} Nd3 {[%emt 0:29:42]} 44. Re2 {[%emt 0:34:00]} Nc1 {[%emt 0:00:00]} 45. Re3 {[%emt 0:00:00]} Nb3 {[%emt 0:00:00]} 46. Bb6 {[%emt 0:00:00]} Nd2 {[%emt 0:00:00]} 47. Re2 {[%emt 0:00:00]} Nb3 {[%emt 0:00:00]} 48. c4 {[%emt 0:00:00]} Re6 {[%emt 0:00:00]} 49. a5 {[%emt 0:00:00]} Re5 {[%emt 0:00:00]} 50. Rc2 {[%emt 0:00:00]} Nxa5 {[%emt 0:00:00]} 51. Bxa5 {[%emt 0:00:00]} Rxa5 {[%emt 0:00:00]} 52. c5 {[%emt 0:00:00]} Rb5 {[%emt 0:00:00]} 53. c6 {[%emt 0:00:00]} Rb8 {[%emt 0:00:29]} 54. Kf2 {[%emt 0:00:00]} 1-0

[Event "Liberia Championship 2023"]
[Site "Monrovia"]
[Date "2024.01.16"]
[Round "2.2"]
[White "Joel O. Ebiekuta"]
[Black "David Leroy Debblay"]
[Result "0-1"]
[ECO "D02"]
[WhiteElo "1875"]
[BlackElo "1791"]
[Annotator "NA COMBH"]
[PlyCount "62"]
[EventDate "2024.01.16"]
[EventType "swiss"]
[EventCountry "LBR"]
[SourceTitle "playchess.com"]
[Source "ChessBase"]
[SourceQuality "1"]
[TimeControl "40/5400+30:1800+30"]

1. d4 {[%emt 0:14:44]} Nf6 {[%emt 0:01:52]} 2. Bf4 {[%emt 0:00:23]} d5 {[%emt 0:00:25]} 3. e3 {[%emt 0:00:30]} e6 {[%emt 0:00:15]} 4. Bd3 {[%emt 0:03:19]} c5 {[%emt 0:03:34]} 5. c3 {[%emt 0:00:13]} Nc6 {[%emt 0:00:32]} 6. Nd2 {[%emt 0:00:30]} Be7 {[%emt 0:03:58]} 7. Ngf3 {[%emt 0:00:29]} h6 {[%emt 0:03:11]} 8. Ne5 {[%emt 0:03:35]} Bd7 {[%emt 0:00:58]} 9. Qf3 {[%emt 0:01:28]} Nxe5 {[%emt 0:08:38]} 10. dxe5 {[%emt 0:00:35]} Ng8 {[%emt 0:00:09]} 11. e4 {[%emt 0:01:39]} Bc6 {[%emt 0:05:07]} 12. exd5 {[%emt 0:01:24]} exd5 {[%emt 0:00:13]} 13. Qg4 {[%emt 0:00:44]} g5 {[%emt 0:02:01]} 14. Be3 {[%emt 0:01:45]} h5 {[%emt 0:00:43]} 15. Qh3 {[%emt 0:03:29]} d4 {[%emt 0:04:44]} 16. cxd4 {[%emt 0:01:18]} cxd4 {[%emt 0:00:07]} 17. e6 {[%emt 0:00:27]} Nh6 {[%emt 0:14:08]} 18. exf7+ {[%emt 0:03:25]} Nxf7 {[%emt 0:00:14]} 19. O-O {[%emt 0:00:36]} dxe3 {[%emt 0:00:18]} 20. Qxe3 {[%emt 0:00:01]} Kf8 {[%emt 0:05:05]} 21. Rad1 {[%emt 0:02:06]} Rh6 {[%emt 0:03:10]} 22. Nc4 {[%emt 0:00:20]} Qd5 {[%emt 0:00:59]} 23. Qg3 {[%emt 0:00:33]} Bd6 {[%emt 0:02:00]} 24. Nxd6 {[%emt 0:00:09]} Qxd6 {[%emt 0:00:04]} 25. f4 {[%emt 0:02:16]} g4 {[%emt 0:07:05]} 26. Kh1 {[%emt 0:01:28]} Rd8 {[%emt 0:01:06]} 27. Rfe1 {[%emt 0:01:38]} Re6 {[%emt 0:06:45]} 28. Rg1 {[%emt 0:03:19]} Qc5 {[%emt 0:00:38]} 29. Bh7 {[%emt 0:03:44]} Rxd1 {[%emt 0:02:03]} 30. Rxd1 {[%emt 0:00:02]} Qe3 {[%emt 0:00:53]} 31. Qh4 {[%emt 0:00:13]} Bxg2+ {[%emt 0:00:45]} 0-1

[Event "Liberia Championship 2023"]
[Site "Monrovia"]
[Date "2024.01.16"]
[Round "2.3"]
[White "Jacob, Jallah"]
[Black "Arnold Smith"]
[Result "0-1"]
[ECO "D02"]
[WhiteElo "1781"]
[BlackElo "1844"]
[Annotator "NA COMBH"]
[PlyCount "110"]
[EventDate "2024.01.16"]
[EventType "swiss"]
[EventCountry "LBR"]
[SourceTitle "playchess.com"]
[Source "ChessBase"]
[SourceQuality "1"]
[TimeControl "40/5400+30:1800+30"]

1. Nf3 {[%emt 0:11:50]} d5 {[%emt 0:23:45]} 2. d4 {[%emt 0:00:16]} Nf6 {[%emt 0:00:36]} 3. Bf4 {[%emt 0:00:15]} e6 {[%emt 0:00:20]} 4. e3 {[%emt 0:00:06]} Bd6 {[%emt 0:00:21]} 5. Bg3 {[%emt 0:00:05]} Bxg3 {[%emt 0:01:26]} 6. hxg3 {[%emt 0:00:03]} Nbd7 {[%emt 0:00:11]} 7. c4 {[%emt 0:00:38]} b6 {[%emt 0:01:04]} 8. cxd5 {[%emt 0:00:56]} exd5 {[%emt 0:00:25]} 9. Bb5 {[%emt 0:00:11]} Bb7 {[%emt 0:00:16]} 10. Qc2 {[%emt 0:01:16]} O-O {[%emt 0:00:23]} 11. Ne5 {[%emt 0:01:15]} g6 {[%emt 0:01:31]} 12. Nxd7 {[%emt 0:02:53]} Nxd7 {[%emt 0:00:29]} 13. Bc6 {[%emt 0:01:32]} Bxc6 {[%emt 0:05:56]} 14. Qxc6 {[%emt 0:00:11]} Nf6 {[%emt 0:02:12]} 15. Nd2 {[%emt 0:01:11]} Qe7 {[%emt 0:01:00]} 16. Rc1 {[%emt 0:01:08]} Rac8 {[%emt 0:00:22]} 17. a3 {[%emt 0:01:34]} a5 {[%emt 0:00:02]} 18. Nf3 {[%emt 0:03:18]} Rfd8 {[%emt 0:03:23]} 19. Ne5 {[%emt 0:00:46]} Ne4 {[%emt 0:03:30]} 20. Qb7 {[%emt 0:03:23]} Qf6 {[%emt 0:04:01]} 21. Rc2 {[%emt 0:07:19]} c5 {[%emt 0:00:59]} 22. O-O {[%emt 0:10:19]} c4 {[%emt 0:07:59]} 23. g4 {[%emt 0:09:16]} Qe6 {[%emt 0:01:59]} 24. f4 {[%emt 0:00:25]} Rb8 {[%emt 0:15:52]} 25. Qc6 {[%emt 0:10:39]} Rdc8 {[%emt 0:00:30]} 26. Qxe6 {[%emt 0:00:11]} fxe6 {[%emt 0:00:08]} 27. a4 {[%emt 0:07:58]} Rc7 {[%emt 0:02:25]} 28. b3 {[%emt 0:03:30]} c3 {[%emt 0:03:50]} 29. Nf3 {[%emt 0:01:12]} b5 {[%emt 0:00:39]} 30. Ra1 {[%emt 0:08:48]} b4 {[%emt 0:00:19]} 31. g5 {[%emt 0:01:48]} Kg7 {[%emt 0:00:24]} 32. g4 {[%emt 0:00:27]} Rh8 {[%emt 0:00:39]} 33. Kg2 {[%emt 0:00:08]} h6 {[%emt 0:00:30]} 34. gxh6+ {[%emt 0:01:11]} Rxh6 {[%emt 0:00:10]} 35. Rh1 {[%emt 0:04:47]} Rxh1 {[%emt 0:00:24]} 36. Kxh1 {[%emt 0:00:02]} Nf2+ {[%emt 0:00:59]} 37. Kg1 {[%emt 0:03:46]} Nxg4 {[%emt 0:00:23]} 38. Ne1 {[%emt 0:00:17]} Nxe3 {[%emt 0:00:42]} 39. Re2 {[%emt 0:00:02]} c2 {[%emt 0:00:09]} 40. Nd3 {[%emt 0:01:30]} c1=Q+ {[%emt 0:01:01]} 41. Nxc1 {[%emt 0:30:45]} Rxc1+ {[%emt 0:30:36]} 42. Kf2 {[%emt 0:00:59]} Rc2 {[%emt 0:02:29]} 43. Kxe3 {[%emt 0:00:35]} Rxe2+ {[%emt 0:00:39]} 44. Kxe2 {[%emt 0:00:47]} Kf6 {[%emt 0:00:40]} 45. Ke3 {[%emt 0:00:35]} Kf5 {[%emt 0:00:39]} 46. Kf3 {[%emt 0:00:32]} g5 {[%emt 0:00:44]} 47. fxg5 {[%emt 0:00:34]} Kxg5 {[%emt 0:00:37]} 48. Kg3 {[%emt 0:00:47]} Kf5 {[%emt 0:00:38]} 49. Kf3 {[%emt 0:00:45]} e5 {[%emt 0:00:38]} 50. dxe5 {[%emt 0:00:39]} Kxe5 {[%emt 0:00:34]} 51. Ke3 {[%emt 0:00:39]} d4+ {[%emt 0:00:42]} 52. Kd3 {[%emt 0:01:14]} Kd5 {[%emt 0:00:37]} 53. Kd2 {[%emt 0:00:45]} Ke4 {[%emt 0:00:36]} 54. Ke2 {[%emt 0:00:37]} d3+ {[%emt 0:00:40]} 55. Kd2 {[%emt 0:00:32]} Kd4 {[%emt 0:15:57]} 0-1

[Event "Liberia Championship 2023"]
[Site "Monrovia"]
[Date "2024.01.16"]
[Round "2.4"]
[White "James, Tondo"]
[Black "Obediah Saah"]
[Result "0-1"]
[ECO "C00"]
[WhiteElo "1837"]
[BlackElo "1756"]
[Annotator "NA COMBH"]
[PlyCount "136"]
[EventDate "2024.01.16"]
[EventType "swiss"]
[EventCountry "LBR"]
[SourceTitle "playchess.com"]
[Source "ChessBase"]
[SourceQuality "1"]
[TimeControl "40/5400+30:1800+30"]

1. e4 {[%emt 0:19:29]} e6 {[%emt 0:05:23]} 2. d3 {[%emt 0:00:40]} d5 {[%emt 0:00:25]} 3. Nd2 {[%emt 0:00:05]} c5 {[%emt 0:00:34]} 4. Ngf3 {[%emt 0:00:47]} Nc6 {[%emt 0:01:15]} 5. g3 {[%emt 0:00:23]} Nf6 {[%emt 0:00:39]} 6. Bg2 {[%emt 0:00:36]} Be7 {[%emt 0:01:03]} 7. O-O {[%emt 0:00:17]} O-O {[%emt 0:00:18]} 8. c3 {[%emt 0:02:03]} Qc7 {[%emt 0:00:53]} 9. Nb3 {[%emt 0:01:30]} Rd8 {[%emt 0:01:57]} 10. Qc2 {[%emt 0:00:15]} c4 {[%emt 0:04:34]} 11. dxc4 {[%emt 0:01:30]} dxc4 {[%emt 0:00:30]} 12. Nbd2 {[%emt 0:01:19]} b5 {[%emt 0:08:17]} 13. a4 {[%emt 0:00:46]} b4 {[%emt 0:00:58]} 14. e5 {[%emt 0:02:29]} b3 {[%emt 0:03:50]} 15. Qb1 {[%emt 0:00:24]} Nd5 {[%emt 1:07:24]} 16. Qe4 {[%emt 0:01:20]} Ba6 {[%emt 0:00:00]} 17. Re1 {[%emt 0:00:34]} Nb8 {[%emt 0:00:00]} 18. Nd4 {[%emt 0:02:37]} Nd7 {[%emt 0:00:00]} 19. Nb5 {[%emt 0:01:34]} Bxb5 {[%emt 0:00:00]} 20. axb5 {[%emt 0:00:02]} Rac8 {[%emt 0:00:00]} 21. Bf1 {[%emt 0:02:21]} N5b6 {[%emt 0:00:00]} 22. Nf3 {[%emt 0:02:22]} Nc5 {[%emt 0:00:00]} 23. Qg4 {[%emt 0:01:41]} Nd3 {[%emt 0:00:00]} 24. Bh6 {[%emt 0:05:55]} Bf8 {[%emt 0:00:00]} 25. Bxd3 {[%emt 0:02:01]} cxd3 {[%emt 0:00:00]} 26. Be3 {[%emt 0:01:40]} Rd5 {[%emt 0:00:00]} 27. Bxb6 {[%emt 0:03:52]} Qxb6 {[%emt 0:00:00]} 28. Nd2 {[%emt 0:00:24]} Rd7 {[%emt 0:00:00]} 29. Qa4 {[%emt 0:00:28]} Rb8 {[%emt 0:00:00]} 30. Qxb3 {[%emt 0:02:36]} Qxb5 {[%emt 0:00:00]} 31. Qxb5 {[%emt 0:00:16]} Rxb5 {[%emt 0:00:00]} 32. Ra2 {[%emt 0:01:54]} g6 {[%emt 0:00:00]} 33. f4 {[%emt 0:01:20]} Rdb7 {[%emt 0:00:00]} 34. Rb1 {[%emt 0:03:49]} g5 {[%emt 0:00:00]} 35. Kf2 {[%emt 0:01:50]} Bc5+ {[%emt 0:00:00]} 36. Kf3 {[%emt 0:00:13]} h5 {[%emt 0:01:15]} 37. Ke4 {[%emt 0:10:36]} Rd7 {[%emt 0:09:45]} 38. b4 {[%emt 0:02:24]} Be7 {[%emt 0:00:00]} 39. Ke3 {[%emt 0:01:39]} f6 {[%emt 0:00:00]} 40. exf6 {[%emt 0:00:00]} Bxf6 {[%emt 0:00:00]} 41. Ne4 {[%emt 0:02:47]} gxf4+ {[%emt 0:02:28]} 42. gxf4 {[%emt 0:00:34]} Be7 {[%emt 0:03:17]} 43. Rg1+ {[%emt 0:01:07]} Kh7 {[%emt 0:03:46]} 44. Rag2 {[%emt 0:01:05]} Bd8 {[%emt 0:23:59]} 45. Kd2 {[%emt 0:02:29]} a5 {[%emt 0:00:00]} 46. Nc5 {[%emt 0:09:18]} Re7 {[%emt 0:00:00]} 47. Rg5 {[%emt 0:01:47]} Kh6 {[%emt 0:00:00]} 48. R1g3 {[%emt 0:08:54]} Rf7 {[%emt 0:00:00]} 49. Rg6+ {[%emt 0:03:01]} Kh7 {[%emt 0:00:00]} 50. Nxe6 {[%emt 0:00:47]} Bh4 {[%emt 0:00:00]} 51. Rg2 {[%emt 0:06:05]} axb4 {[%emt 0:00:00]} 52. c4 {[%emt 0:04:58]} Rb8 {[%emt 0:00:00]} 53. Kxd3 {[%emt 0:00:57]} b3 {[%emt 0:00:00]} 54. Rg7+ {[%emt 0:01:30]} Rxg7 {[%emt 0:00:00]} 55. Rxg7+ {[%emt 0:00:35]} Kh6 {[%emt 0:00:00]} 56. Rg1 {[%emt 0:01:44]} Bf6 {[%emt 0:00:00]} 57. c5 {[%emt 0:03:04]} b2 {[%emt 0:00:00]} 58. Rb1 {[%emt 0:02:02]} Rb3+ {[%emt 0:00:24]} 59. Ke4 {[%emt 0:03:27]} Ra3 {[%emt 0:00:59]} 60. c6 {[%emt 0:01:09]} Ra1 {[%emt 0:00:53]} 61. c7 {[%emt 0:00:44]} Rxb1 {[%emt 0:00:56]} 62. c8=Q {[%emt 0:00:36]} Re1+ {[%emt 0:00:59]} 63. Kf5 {[%emt 0:02:00]} b1=Q+ {[%emt 0:05:19]} 64. Kxf6 {[%emt 0:05:49]} Qg6+ {[%emt 0:00:00]} 65. Ke7 {[%emt 0:00:00]} Qg7+ {[%emt 0:00:00]} 66. Kd6 {[%emt 0:00:07]} Rd1+ {[%emt 0:00:00]} 67. Kc6 {[%emt 0:00:45]} Rc1+ {[%emt 0:00:37]} 68. Nc5 {[%emt 0:00:35]} Rxc5+ {[%emt 0:01:14]} 0-1

[Event "Liberia Championship 2023"]
[Site "Monrovia"]
[Date "2024.01.16"]
[Round "2.5"]
[White "Alfred J. Kollie"]
[Black "Foday W. Kondoh"]
[Result "0-1"]
[ECO "A45"]
[WhiteElo "1612"]
[BlackElo "1785"]
[Annotator "NA COMBH"]
[PlyCount "86"]
[EventDate "2024.01.16"]
[EventType "swiss"]
[EventCountry "LBR"]
[SourceTitle "playchess.com"]
[Source "ChessBase"]
[SourceQuality "1"]
[TimeControl "40/5400+30:1800+30"]

1. d4 {[%emt 0:03:05]} Nf6 {[%emt 0:00:25]} 2. f3 {[%emt 0:00:22]} d5 {[%emt 0:00:48]} 3. Bg5 {[%emt 0:00:20]} Bf5 {[%emt 0:02:18]} 4. Nd2 {[%emt 0:00:12]} Nbd7 {[%emt 0:00:46]} 5. c3 {[%emt 0:00:15]} e5 {[%emt 0:03:37]} 6. e4 {[%emt 0:00:31]} dxe4 {[%emt 0:00:57]} 7. fxe4 {[%emt 0:00:14]} Bg6 {[%emt 0:01:30]} 8. Ngf3 {[%emt 0:00:43]} Be7 {[%emt 0:08:13]} 9. Bd3 {[%emt 0:00:18]} exd4 {[%emt 0:01:57]} 10. cxd4 {[%emt 0:00:12]} O-O {[%emt 0:21:13]} 11. O-O {[%emt 0:00:15]} c5 {[%emt 0:04:55]} 12. Bxf6 {[%emt 0:09:18]} Nxf6 {[%emt 0:00:12]} 13. Qb3 {[%emt 0:00:22]} cxd4 {[%emt 0:07:34]} 14. Qxb7 {[%emt 0:00:46]} Nd7 {[%emt 0:04:24]} 15. Nb3 {[%emt 0:00:57]} a5 {[%emt 0:01:35]} 16. Qd5 {[%emt 0:02:11]} Nf6 {[%emt 0:02:14]} 17. Qxd8 {[%emt 0:00:33]} Rfxd8 {[%emt 0:00:14]} 18. Nbd2 {[%emt 0:01:38]} Rab8 {[%emt 0:02:06]} 19. b3 {[%emt 0:00:18]} Bb4 {[%emt 0:00:16]} 20. Rad1 {[%emt 0:00:20]} Rbc8 {[%emt 0:00:59]} 21. h3 {[%emt 0:00:46]} Nd5 {[%emt 0:03:25]} 22. Nc4 {[%emt 0:00:21]} Nc3 {[%emt 0:00:31]} 23. Ra1 {[%emt 0:01:09]} Nxe4 {[%emt 0:01:25]} 24. Nfe5 {[%emt 0:00:33]} Ng3 {[%emt 0:12:13]} 25. Bxg6 {[%emt 0:00:13]} fxg6 {[%emt 0:00:17]} 26. Rf3 {[%emt 0:00:31]} Nf5 {[%emt 0:00:42]} 27. Rd1 {[%emt 0:01:06]} Ne3 {[%emt 0:04:30]} 28. Rd3 {[%emt 0:01:27]} Nxc4 {[%emt 0:01:14]} 29. Nxc4 {[%emt 0:00:19]} a4 {[%emt 0:00:28]} 30. Nb6 {[%emt 0:00:50]} Rc1+ {[%emt 0:00:16]} 31. Rf1 {[%emt 0:00:39]} Rc3 {[%emt 0:04:08]} 32. Rfd1 {[%emt 0:00:33]} axb3 {[%emt 0:00:50]} 33. axb3 {[%emt 0:00:11]} Rxd3 {[%emt 0:01:12]} 34. Rxd3 {[%emt 0:00:09]} Bc3 {[%emt 0:01:40]} 35. Na4 {[%emt 0:00:54]} Bb4 {[%emt 0:01:27]} 36. g4 {[%emt 0:00:34]} Kf7 {[%emt 0:00:13]} 37. Kg2 {[%emt 0:00:07]} Ke6 {[%emt 0:00:38]} 38. Kf3 {[%emt 0:00:45]} Ke5 {[%emt 0:00:18]} 39. Nb6 {[%emt 0:03:22]} Rf8+ {[%emt 0:00:30]} 40. Ke2 {[%emt 0:00:00]} Ke4 {[%emt 0:00:00]} 41. Rg3 {[%emt 0:01:44]} Bc5 {[%emt 0:07:32]} 42. Nc4 {[%emt 0:01:05]} d3+ {[%emt 0:01:01]} 43. Kd1 {[%emt 0:00:50]} Rf1+ {[%emt 0:01:19]} 0-1